fUSD/lending_fUSD_20240115
["ID","MTS","AMOUNT","RATE_DAILY","PERIOD"]
[311664464,1705296386814,-452.8908,0.000228,2]
[311664465,1705296386835,-76533.02690257,0.000228,2]
[311664470,1705296447329,1000.0,0.000216,2]
[311664471,1705296447675,1000.0,0.000206,2]
[311664472,1705296447940,1009.627127,0.000196,2]
[311664473,1705296485861,500.0,0.0002205,2]
[311664474,1705296486392,500.0,0.00021928,2]
[311664475,1705296497747,538.95,0.00021921,2]
[311664476,1705296510191,1000.0,0.000216,2]
[311664477,1705296510706,1921.548702,0.000206,2]
[311664478,1705296525147,176.56,0.00021917,2]
[311664482,1705296577837,222.14,0.00019999,2]
[311664486,1705296632059,-1366.4,0.00022101,2]
[311664487,1705296632068,-222.14,0.00022263,2]
[311664488,1705296632078,-1000.0,0.000226,2]
[311664489,1705296632087,-1000.0,0.000226,2]
[311664490,1705296632096,-1728.36258,0.00022713,2]
[311664491,1705296632105,-150.0,0.00022796,2]
[311664492,1705296632115,-9019.82246201,0.00022797,2]
[311664493,1705296632124,-318.525335,0.00022797,2]
[311664494,1705296632133,-430.762,0.00022798,2]
[311664495,1705296632142,-29656.05525217,0.00022799,2]
[311664496,1705296632154,-9606.00301058,0.00022799,2]
[311664497,1705296632181,-456.81059646,0.00022799,2]
[311664498,1705296632193,-850.0,0.00022799,2]
[311664499,1705296632213,-1821.65474276,0.00022799,2]
[311664500,1705296632224,-250.0,0.00022799,2]
[311664501,1705296632236,-329.66712704,0.00022799,2]
[311664502,1705296632246,-835.28401041,0.00022799,2]
[311664503,1705296632257,-1174.56017211,0.00022799,2]
[311664504,1705296632293,-1565.97124879,0.00022799,2]
[311664505,1705296632304,-7386.20519146,0.00022799,2]
[311664506,1705296632350,-350.0,0.00022799,2]
[311664507,1705296632362,-4261.06819672,0.00022799,2]
[311664509,1705296638170,-2110.17496252,0.00022799,2]
[311664510,1705296638182,-491.64613668,0.00022799,2]
[311664511,1705296638227,-105657.8972729,0.00022799,2]
[311664512,1705296638237,-265.44331119,0.00022799,2]
[311664513,1705296638247,-155697.46689743,0.000228,2]
[311664514,1705296638257,-296.33063111,0.00022813,2]
[311664515,1705296638266,-499.99,0.00022813,2]
[311664516,1705296638275,-1139.91220091,0.00022814,2]
[311664517,1705296638285,-200.0,0.00022815,2]
[311664518,1705296638294,-800.0,0.00022815,2]
[311664519,1705296638303,-1777.37,0.00022815,2]
[311664520,1705296638313,-800.0,0.00022816,2]
[311664521,1705296638322,-200.0,0.00022816,2]
[311664522,1705296638331,-800.0,0.00022816,2]
[311664523,1705296638341,-800.0,0.00022816,2]
[311664524,1705296638350,-800.0,0.00022816,2]
[311664525,1705296638359,-200.0,0.00022816,2]
[311664526,1705296638368,-150.0,0.00022841,2]
[311664527,1705296638378,-150.0,0.0002288,2]
[311664528,1705296638387,-369.84429279,0.00022883,2]
[311664529,1705296638396,-500.0,0.00022885,2]
[311664530,1705296638405,-527.5889,0.00022885,2]
[311664531,1705296638414,-150.0,0.00022887,2]
[311664532,1705296638423,-156.4,0.00022888,2]
[311664533,1705296638433,-632.23892056,0.00022898,2]
[311664534,1705296638442,-360.1048592,0.000229,2]
[311664535,1705296638451,-154.8022516,0.000229,2]
[311664536,1705296638461,-500.0,0.000229,8]
[311664538,1705296638470,-302.68207572,0.00022915,2]
[311664540,1705296638480,-161.76801283,0.00022929,2]
[311664542,1705296638489,-1541.76067428,0.00022931,2]
[311664544,1705296638498,-150.0,0.00022935,2]
[311664546,1705296638507,-150.0,0.00022975,2]
[311664548,1705296638517,-179.94228659,0.0002299,2]
[311664550,1705296638526,-156.10882555,0.00022996,2]
[311664552,1705296638539,-286.48732799,0.00022997,2]
[311664554,1705296638548,-473.70925825,0.00022998,2]
[311664556,1705296638558,-172.7376456,0.00022998,2]
[311664558,1705296638568,-1606.17060449,0.00022998,2]
[311664560,1705296638577,-584.28720468,0.00022998,2]
[311664562,1705296638587,-59736.59530306,0.00022998,2]
[311664564,1705296638597,-156.33331065,0.00022998,2]
[311664566,1705296638607,-192.74816841,0.00022998,2]
[311664569,1705296638618,-2906.05156512,0.00022998,2]
[311664571,1705296638627,-5344.55113243,0.00022998,2]
[311664572,1705296638636,-291.52834849,0.00022998,2]
[311664575,1705296638645,-4310.50841856,0.00022998,2]
[311664577,1705296638655,-156.75426863,0.00022998,2]
[311664578,1705296638664,-307.73417923,0.00022998,2]
[311664581,1705296638674,-356.58370823,0.00022998,2]
[311664582,1705296638683,-2669.4330839,0.00022998,2]
[311664585,1705296638693,-399.1011347,0.00022998,2]
[311664587,1705296638703,-156.36954474,0.00022998,2]
[311664589,1705296638712,-3326.10114817,0.00022998,2]
[311664590,1705296638721,-155.73624311,0.00022998,2]
[311664591,1705296638730,-289.50953475,0.00022998,2]
[311664592,1705296638740,-9646.26917456,0.00022999,2]
[311664593,1705296638749,-3294.38484961,0.00022999,2]
[311664594,1705296638759,-70693.30155196,0.00023,2]
[311664595,1705296638769,-343908.00757009,0.00023,2]
[311664596,1705296638778,-151.0,0.00023,7]
[311664597,1705296638788,-161.451052,0.00023,7]
[311664598,1705296638799,-151.0,0.00023,7]
[311664599,1705296638809,-177.297722,0.00023,7]
[311664600,1705296638819,-177.297722,0.00023,7]
[311664601,1705296638829,-199.331859,0.00023,7]
[311664602,1705296638839,-525.864802,0.00023,7]
[311664604,1705296638848,-525.864802,0.00023,7]
[311664606,1705296638857,-151.0,0.00023,7]
[311664608,1705296638867,-151.0,0.00023,7]
[311664610,1705296638877,-151.0,0.00023,7]
[311664612,1705296638889,-151.0,0.00023,7]
[311664614,1705296638899,-150.0,0.00023,2]
[311664616,1705296638908,-151.0,0.00023,7]
[311664618,1705296638917,-156.4,0.00023002,2]
[311664620,1705296638927,-150.0,0.00023059,2]
[311664622,1705296638937,-62176.3848333,0.00023085,2]
[311664624,1705296638946,-4146.9425383,0.00023085,2]
[311664626,1705296638956,-1309.9877214,0.00023101,2]
[311664628,1705296638965,-156.4,0.00023117,2]
[311664630,1705296638975,-408.24,0.00023131,2]
[311664632,1705296638985,-161.76801283,0.00023142,2]
[311664634,1705296638994,-159.92,0.00023215,2]
[311664637,1705296639003,-360.1048592,0.0002324,2]
[311664639,1705296639013,-200.0,0.00023319,2]
[311664641,1705296639023,-161.76801283,0.00023354,2]
[311664643,1705296639032,-180.72886258,0.00023358,2]
[311664645,1705296639042,-370.37,0.00023466,2]
[311664647,1705296639051,-276.0,0.00023495,2]
[311664649,1705296639061,-1728.36257994,0.0002356,2]
[311664651,1705296639070,-161.76801283,0.00023567,2]
[311664653,1705296639079,-360.1048592,0.00023579,2]
[311664655,1705296639089,-2000.0,0.000236,2]
[311664657,1705296639098,-1000.0,0.000236,8]
[311664659,1705296639108,-1000.0,0.000236,2]
[311664661,1705296639117,-1000.0,0.000236,2]
[311664663,1705296639127,-1600.0,0.000237,8]
[311664665,1705296639136,-259.88,0.00023749,2]
[311664667,1705296639146,-161.76801283,0.00023779,2]
[311664669,1705296639155,-2100.0,0.000238,8]
[311664671,1705296639164,-2600.0,0.000239,8]
[311664673,1705296639173,-360.1048592,0.00023919,2]
[311664675,1705296639182,-301.96,0.00023953,2]
[311664677,1705296639192,-161.76801283,0.00023992,2]
[311664679,1705296639201,-5692.02220698,0.00024,2]
[311664681,1705296639211,-173.71,0.00024023,2]
[311664683,1705296639220,-154.8022516,0.00024104,2]
[311664685,1705296639230,-274.40413344,0.00024104,2]
[311664687,1705296639239,-702.01172011,0.00024104,2]
[311664689,1705296639249,-917.86961744,0.00024104,2]
[311664691,1705296639258,-173699.04385965,0.00024158,2]
[311664700,1705296639328,-5096.04734155,0.00024158,2]
[311664702,1705296639340,-103306.40412873,0.00024158,2]
[311664705,1705296639356,-4302.23318625,0.00024158,2]
[311664707,1705296639368,-5049.45697922,0.00024158,2]
[311664712,1705296639397,-2333.36605109,0.00024158,2]
[311664899,1705296641133,-96.79017307,0.00024158,2]
[311664916,1705296641279,-2767.31241176,0.00024158,2]
[311665122,1705296643235,-3337.47551585,0.00024158,2]
[311665124,1705296643246,-2961.42736982,0.00024158,2]
[311665137,1705296643351,-252.91197704,0.00024158,2]
[311665139,1705296643362,-930.94625846,0.00024158,2]
[311665278,1705296646384,-856.94653007,0.00023599,2]
[311665279,1705296646453,-400.66838458,0.00023599,2]
[311665280,1705296646464,-629.425,0.00023599,2]
[311665464,1705296694334,410.26019138,0.00021499,2]
[311665466,1705297062584,199.92,0.00021101,2]
[311665469,1705297353954,6103.31749324,0.00021101,2]
[311665470,1705297373736,6078.89217383,0.00021101,2]
[311665471,1705297391734,443.03217534,0.00021101,2]
[311665473,1705297535481,189.92,0.0002099,2]
[311665474,1705297684674,200.0,0.00021987,2]
[311665479,1705297810198,250.0,0.000205,2]
[311665487,1705297832291,-379.41374096,0.00022909,2]
[311665488,1705297832301,-263.27381778,0.0002291,2]
[311665489,1705297832311,-63.01111807,0.00022913,2]
[311665490,1705297832446,-368.14888193,0.00022913,2]
[311665491,1705297832456,-241.12,0.00022914,2]
[311665492,1705297832465,-54.66734431,0.00022939,2]
[311665518,1705297838459,-445.33,0.00022862,2]
[311665519,1705297838471,-150.0,0.00023,2]
[311665520,1705297838481,-552.76,0.00023031,2]
[311665521,1705297838491,-156.53,0.0002308,2]
[311665522,1705297838501,-159.92,0.00023183,2]
[311665523,1705297838512,-296.51109517,0.0002319,2]
[311665524,1705297838522,-189.92,0.00023254,2]
[311665525,1705297838532,-161.76801283,0.00023278,2]
[311665526,1705297838543,-165.18,0.00023378,2]
[311665527,1705297838553,-204.310091,0.0002339,2]
[311665528,1705297838564,-4618.23730477,0.000235,2]
[311665529,1705297838574,-5570.52267082,0.000235,2]
[311665530,1705297838604,-2697.71553036,0.000235,2]
[311665531,1705297838617,-41993.13372025,0.000235,2]
[311665532,1705297838628,-940.47,0.000235,2]
[311665533,1705297838637,-150.0,0.00023533,2]
[311665534,1705297838647,-940.47,0.00023534,2]
[311665535,1705297838657,-940.68,0.00023534,2]
[311665536,1705297838667,-802.53,0.00023534,2]
[311665537,1705297838677,-401.38,0.00023534,2]
[311665538,1705297838687,-940.47,0.00023534,2]
[311665539,1705297838696,-940.47,0.00023534,2]
[311665540,1705297838706,-401.38,0.00023534,2]
[311665541,1705297838716,-401.38,0.00023534,2]
[311665542,1705297838726,-940.47,0.00023534,2]
[311665543,1705297838735,-311.95379466,0.00023534,2]
[311665544,1705297838770,-216.17,0.00022945,2]
[311665545,1705297838779,-628.51620534,0.00023534,2]
[311665546,1705297838792,-401.38,0.00023534,2]
[311665547,1705297838802,-940.47,0.00023534,2]
[311665548,1705297838811,-401.38,0.00023534,2]
[311665549,1705297838821,-958.85,0.00023534,2]
[311665550,1705297838830,-408.41,0.00023534,2]
[311665551,1705297838839,-204.68,0.00023534,2]
[311665552,1705297838849,-243.25230651,0.00023558,2]
[311665553,1705297838858,-9926.16251639,0.00023589,3]
[311665554,1705297838871,-2783.65741646,0.00023589,3]
[311665555,1705297838883,-1519.28297883,0.00023589,3]
[311665561,1705297841316,-767.68758824,0.00023589,3]
[311665562,1705297841425,-292.69807492,0.00023589,3]
[311665563,1705297841437,-619.16129177,0.00023589,3]
[311665564,1705297841448,-2933.45776092,0.00023589,3]
[311665616,1705297846562,-1000.0,0.00023589,3]
[311665848,1705297864075,203.0,0.00021987,2]
[311665849,1705298029651,195.77,0.00020758,2]
[311665850,1705298366107,152.27,0.00021934,2]
[311665851,1705298391252,292.85,0.00021915,2]
[311665852,1705298404347,201.0,0.00021715,2]
[311665853,1705298411781,250.0,0.000205,2]
[311665854,1705298435723,344.92,0.00021908,2]
[311665855,1705298457411,682.42703175,0.00022,2]
[311665856,1705298485941,21627.17,0.00021853,2]
[311665857,1705298536561,2085.47568438,0.00021633,2]
[311665858,1705298598088,218.7,0.00019707,2]
[311665859,1705298598305,218.7,0.00021971,2]
[311665860,1705298607616,820.47628164,0.00021537,2]
[311665861,1705298610023,265.89583047,0.00021537,2]
[311665862,1705298639207,1604.6010116,0.00020191,2]
[311665863,1705298644512,204.99998,0.00021715,2]
[311665864,1705298657206,1000.0331884,0.00020191,2]
[311665865,1705298679286,365.78618045,0.00021537,2]
[311665866,1705298746970,155.91,0.00021633,2]
[311665867,1705298747428,155.91,0.00021745,2]
[311665868,1705298747651,155.91,0.00021858,2]
[311665869,1705298747858,155.91,0.00021971,2]
[311665870,1705298748078,155.91,0.00022083,2]
[311665871,1705298788872,158.99,0.00021672,2]
[311665872,1705298831333,315.95,0.00021441,2]
[311665873,1705298865377,220.77,0.00021429,2]
[311665874,1705298865444,220.77,0.00021542,2]
[311665875,1705298865648,220.77,0.00021654,2]
[311665876,1705298865859,220.77,0.00021767,2]
[311665877,1705298866278,220.77,0.0002188,2]
[311665878,1705298866446,220.77,0.00021993,2]
[311665879,1705298870723,651.37,0.0002139,2]
[311665880,1705298879077,1054.27,0.00021379,2]
[311665881,1705298938469,286.52776858,0.00022098,2]
[311665882,1705298939078,204.29770003,0.00022098,2]
[311665883,1705298942007,940.13112153,0.00022098,2]
[311665884,1705298944839,285.2468137,0.00022098,2]
[311665885,1705298949302,263.27381778,0.00022097,2]
[311665886,1705298955718,1202.95567145,0.00022098,2]
[311665887,1705298957848,2618.74812066,0.00022098,2]
[311665888,1705298961702,400.34058814,0.00022098,2]
[311665889,1705298964857,316.17811747,0.00022098,2]
[311665890,1705298973999,2144.43375818,0.00022098,2]
[311665891,1705299010010,207.95,0.00019489,2]
[311665892,1705299010163,207.95,0.00021752,2]
[311665894,1705299031580,-260.05395446,0.00022099,2]
[311665895,1705299031597,-162.12583632,0.00022099,2]
[311665896,1705299031612,-150.0,0.000221,2]
[311665897,1705299031625,-150.0,0.000221,2]
[311665898,1705299031640,-220.77,0.00022105,2]
[311665899,1705299031655,-2927.64124402,0.00022187,2]
[311665900,1705299031670,-456.36347297,0.0002219,2]
[311665901,1705299031686,-98.60313291,0.0002219,2]
[311665902,1705299031699,-3515.91965509,0.0002219,2]
[311665903,1705299037737,-10869.60034491,0.0002219,2]
[311665904,1705299037747,-1072.12657304,0.00022195,2]
[311665905,1705299037757,-999.99,0.00022195,2]
[311665906,1705299037767,-155.91,0.00022196,2]
[311665907,1705299037778,-493.82,0.00022196,2]
[311665908,1705299037788,-220.77,0.00022218,2]
[311665909,1705299037798,-155.91,0.00022309,2]
[311665910,1705299037812,-318.525335,0.00022309,2]
[311665911,1705299037822,-627.06633555,0.00022309,2]
[311665912,1705299037836,-225.95499328,0.00022309,2]
[311665913,1705299037850,-2615.58378524,0.00022309,2]
[311665914,1705299037861,-599.29511904,0.00022309,2]
[311665915,1705299037872,-316.17811747,0.00022309,2]
[311665916,1705299037885,-412.32446091,0.00022309,2]
[311665917,1705299037897,-246.19205204,0.00022309,2]
[311665918,1705299037911,-406.90321448,0.00022309,2]
[311665919,1705299037920,-2144.43375818,0.00022309,2]
[311665921,1705299037931,-171.82094421,0.0002231,2]
[311665923,1705299037944,-288.74697598,0.0002231,2]
[311665925,1705299037954,-97743.0,0.00022311,2]
[311665927,1705299037963,-220.77,0.00022331,2]
[311665929,1705299037975,-314.05012087,0.00022336,2]
[311665931,1705299037987,-1133.92,0.00022336,2]
[311665933,1705299037998,-11569.5895,0.00022336,2]
[311665935,1705299038008,-157.47,0.00022348,2]
[311665937,1705299038017,-315.95,0.0002242,2]
[311665939,1705299038026,-155.91,0.00022421,2]
[311665941,1705299038037,-3160.44886335,0.00022426,2]
[311665943,1705299038048,-427.94737024,0.00022435,2]
[311665944,1705299038058,-427.94737022,0.00022435,2]
[311665945,1705299038068,-4202.22059993,0.00022435,2]
[311665946,1705299038079,-1773.36971681,0.00022435,2]
[311665947,1705299038090,-155.75041415,0.00022435,2]
[311665948,1705299038100,-427.94737022,0.00022436,2]
[311665949,1705299038111,-22665.86361136,0.00022436,2]
[311665950,1705299038122,-1695.16198721,0.00022436,2]
[311665951,1705299038134,-392.02453943,0.00022436,6]
[311665952,1705299038146,-1777.47440942,0.00022436,2]
[311665953,1705299038157,-173.33969942,0.00022436,2]
[311665954,1705299038169,-552.5828733,0.00022436,2]
[311665955,1705299038180,-69464.6391297,0.00022436,2]
[311665956,1705299038191,-86895.4545,0.00022436,2]
[311665957,1705299038203,-742.1657,0.00022436,2]
[311665958,1705299038213,-1000.0,0.00022436,2]
[311665959,1705299038223,-291.51323847,0.00022437,2]
[311665960,1705299038234,-190.46428984,0.00022437,2]
[311665961,1705299038243,-160012.9555,0.00022437,2]
[311665962,1705299038254,-1000.0,0.00022437,2]
[311665963,1705299038265,-359.1159,0.00022437,2]
[311665964,1705299038275,-1319.66004406,0.00022439,2]
[311665965,1705299038284,-220.77,0.00022444,2]
[311665966,1705299038294,-201.0,0.00022455,2]
[311665967,1705299038304,-19119.1455636,0.000225,2]
[311665968,1705299038318,-3000.0,0.000225,2]
[311665969,1705299038331,-2939.9656371,0.000225,2]
[311665970,1705299038342,-186.37172731,0.00022525,2]
[311665971,1705299038354,-186.37172731,0.00022526,2]
[311665972,1705299038366,-186.37172731,0.00022526,2]
[311665973,1705299038380,-155.91,0.00022534,2]
[311665974,1705299038392,-235.26160349,0.00022534,2]
[311665975,1705299038405,-155.27919371,0.00022534,2]
[311665976,1705299038415,-1047.65907451,0.00022534,2]
[311665977,1705299038425,-216.36831103,0.00022534,2]
[311665978,1705299038435,-300.0,0.00022535,2]
[311665979,1705299038446,-154.15780688,0.00022535,2]
[311665980,1705299038456,-300.0,0.00022535,2]
[311665981,1705299038466,-3336937.3102187,0.00022535,2]
[311665982,1705299038477,-1000.0,0.00022535,2]
[311665983,1705299038487,-150000.0,0.00022535,2]
[311665984,1705299038496,-150000.0,0.00022535,2]
[311665985,1705299038506,-151.0,0.00022535,7]
[311665986,1705299038515,-150000.0,0.00022535,2]
[311665987,1705299038525,-311.210821,0.00022535,7]
[311665988,1705299038535,-311.210821,0.00022535,7]
[311665989,1705299038545,-151.0,0.00022535,7]
[311665990,1705299038554,-488.378322,0.00022535,7]
[311665991,1705299038566,-488.378322,0.00022535,7]
[311665992,1705299038575,-488.378322,0.00022535,7]
[311665993,1705299038585,-488.378322,0.00022535,7]
[311665994,1705299038598,-151.0,0.00022535,7]
[311665995,1705299038607,-151.0,0.00022535,7]
[311665996,1705299038617,-151.0,0.00022535,7]
[311665997,1705299038629,-152.264614,0.00022535,7]
[311665998,1705299038640,-151.0,0.00022535,7]
[311665999,1705299038650,-151.0,0.00022535,7]
[311666000,1705299038661,-151.0,0.00022535,2]
[311666001,1705299038671,-151.0,0.00022535,2]
[311666002,1705299038681,-151.0,0.00022535,7]
[311666003,1705299038692,-151.0,0.00022535,7]
[311666004,1705299038702,-151.0,0.00022535,7]
[311666005,1705299038713,-151.0,0.00022535,7]
[311666006,1705299038726,-151.0,0.00022535,7]
[311666007,1705299038737,-151.0,0.00022535,7]
[311666008,1705299038748,-151.0,0.00022535,7]
[311666009,1705299038757,-151.0,0.00022535,7]
[311666010,1705299038768,-151.0,0.00022535,7]
[311666011,1705299038778,-219.858862,0.00022535,7]
[311666012,1705299038787,-96756.71251282,0.00022535,2]
[311666013,1705299038796,-151.0,0.00022535,7]
[311666014,1705299038806,-151.0,0.00022535,7]
[311666015,1705299038815,-151.0,0.00022535,7]
[311666016,1705299038825,-151.0,0.00022535,7]
[311666017,1705299038834,-151.0,0.00022535,7]
[311666018,1705299038843,-151.0,0.00022535,7]
[311666019,1705299038853,-3932.10395113,0.00022535,2]
[311666020,1705299038863,-363.66366697,0.00022535,2]
[311666021,1705299038874,-522.06369342,0.00022535,2]
[311666022,1705299038883,-218.06620418,0.00022535,2]
[311666023,1705299038896,-161.35063331,0.00022535,2]
[311666024,1705299038905,-179.60156692,0.00022535,2]
[311666025,1705299038919,-151.0,0.00022536,7]
[311666026,1705299038927,-151.0,0.00022536,7]
[311666027,1705299038936,-2632.42,0.00022536,2]
[311666028,1705299038945,-2632.42,0.00022536,2]
[311666029,1705299038955,-2632.42,0.00022536,2]
[311666030,1705299038963,-2632.42,0.00022536,2]
[311666031,1705299038974,-2632.42,0.00022536,2]
[311666032,1705299038983,-2632.42,0.00022536,2]
[311666033,1705299038992,-2632.42,0.00022536,2]
[311666034,1705299039002,-2632.42,0.00022536,2]
[311666035,1705299039011,-2632.42,0.00022536,2]
[311666036,1705299039020,-2632.42,0.00022536,2]
[311666037,1705299039029,-2632.42,0.00022536,2]
[311666038,1705299039038,-2632.42,0.00022536,2]
[311666039,1705299039048,-2632.42,0.00022536,2]
[311666040,1705299039057,-2632.42,0.00022536,2]
[311666041,1705299039069,-2632.42,0.00022536,2]
[311666042,1705299039078,-2632.42,0.00022536,2]
[311666043,1705299039087,-2632.42,0.00022536,2]
[311666044,1705299039097,-2632.42,0.00022536,2]
[311666045,1705299039106,-2632.42,0.00022536,2]
[311666046,1705299039118,-2632.42,0.00022536,2]
[311666047,1705299039129,-2632.42,0.00022536,2]
[311666048,1705299039139,-2632.42,0.00022536,2]
[311666049,1705299039149,-2632.42,0.00022536,2]
[311666050,1705299039158,-2632.43836618,0.00022536,2]
[311666051,1705299039169,-300.0,0.00022536,2]
[311666052,1705299039178,-1046.78345911,0.00022536,2]
[311666053,1705299039187,-188.545329,0.00022536,7]
[311666054,1705299039197,-151.0,0.00022536,7]
[311666055,1705299039206,-159.56795,0.00022536,7]
[311666056,1705299039215,-159.56795,0.00022536,7]
[311666057,1705299039224,-151.0,0.00022536,7]
[311666058,1705299039233,-311.210821,0.00022536,7]
[311666059,1705299039242,-311.210821,0.00022536,7]
[311666060,1705299039251,-183.42792,0.00022536,7]
[311666061,1705299039260,-150000.0,0.00022536,2]
[311666062,1705299039269,-488.378322,0.00022536,7]
[311666063,1705299039279,-488.378322,0.00022536,7]
[311666064,1705299039288,-151.0,0.00022536,7]
[311666065,1705299039297,-151.0,0.00022536,7]
[311666066,1705299039306,-151.0,0.00022536,2]
[311666067,1705299039317,-150000.0,0.00022536,2]
[311666068,1705299039326,-151.0,0.00022536,7]
[311666069,1705299039337,-151.0,0.00022536,7]
[311666070,1705299039346,-151.0,0.00022536,7]
[311666071,1705299039357,-151.0,0.00022536,7]
[311666072,1705299039368,-151.0,0.00022536,7]
[311666073,1705299039380,-150000.0,0.00022536,2]
[311666074,1705299039391,-151.0,0.00022536,7]
[311666075,1705299039400,-151.0,0.00022536,7]
[311666076,1705299039410,-151.0,0.00022536,7]
[311666077,1705299039419,-151.0,0.00022536,7]
[311666078,1705299039428,-151.0,0.00022536,7]
[311666079,1705299039437,-151.0,0.00022536,7]
[311666080,1705299039446,-151.0,0.00022536,7]
[311666081,1705299039456,-151.0,0.00022536,7]
[311666082,1705299039465,-151.0,0.00022536,7]
[311666083,1705299039476,-151.0,0.00022536,7]
[311666084,1705299039485,-151.0,0.00022536,7]
[311666085,1705299039495,-151.0,0.00022536,7]
[311666086,1705299039505,-207.47861613,0.00022536,2]
[311666087,1705299039515,-200.52959996,0.00022536,2]
[311666088,1705299039524,-181.62975253,0.00022536,2]
[311666089,1705299039534,-229.48307305,0.00022536,2]
[311666090,1705299039543,-2452.61172856,0.00022536,2]
[311666091,1705299039552,-517520.98110086,0.00022536,2]
[311666092,1705299039562,-150000.0,0.00022536,2]
[311666093,1705299039571,-150000.0,0.00022536,2]
[311666094,1705299039580,-150000.0,0.00022536,2]
[311666095,1705299039590,-150000.0,0.00022536,2]
[311666096,1705299039599,-151.0,0.00022536,7]
[311666097,1705299039608,-225.9464656,0.00022536,7]
[311666098,1705299039617,-159.56795,0.00022536,7]
[311666099,1705299039626,-159.56795,0.00022536,7]
[311666100,1705299039636,-159.56795,0.00022536,7]
[311666101,1705299039645,-159.56795,0.00022536,7]
[311666102,1705299039655,-159.56795,0.00022536,7]
[311666103,1705299039664,-159.56795,0.00022536,7]
[311666104,1705299039673,-159.56795,0.00022536,7]
[311666105,1705299039682,-159.56795,0.00022536,7]
[311666106,1705299039691,-159.56795,0.00022536,7]
[311666107,1705299039700,-159.56795,0.00022536,7]
[311666108,1705299039709,-151.0,0.00022536,7]
[311666109,1705299039720,-151.0,0.00022536,7]
[311666110,1705299039730,-151.0,0.00022536,7]
[311666111,1705299039739,-311.210821,0.00022536,7]
[311666112,1705299039749,-311.210821,0.00022536,7]
[311666132,1705299039998,-311.210821,0.00022536,7]
[311666134,1705299040013,-311.210821,0.00022536,7]
[311666136,1705299040022,-311.210821,0.00022536,7]
[311666138,1705299040031,-311.210821,0.00022536,7]
[311666140,1705299040040,-311.210821,0.00022536,7]
[311666142,1705299040050,-311.210821,0.00022536,7]
[311666144,1705299040058,-311.210821,0.00022536,7]
[311666146,1705299040068,-311.210821,0.00022536,7]
[311666148,1705299040076,-488.378322,0.00022536,7]
[311666150,1705299040085,-488.378322,0.00022536,7]
[311666152,1705299040094,-488.378322,0.00022536,7]
[311666154,1705299040104,-488.378322,0.00022536,7]
[311666156,1705299040113,-488.378322,0.00022536,7]
[311666158,1705299040122,-488.378322,0.00022536,7]
[311666160,1705299040131,-488.378322,0.00022536,7]
[311666163,1705299040140,-488.378322,0.00022536,7]
[311666164,1705299040149,-488.378322,0.00022536,7]
[311666166,1705299040158,-488.378322,0.00022536,7]
[311666168,1705299040167,-151.0,0.00022536,7]
[311666170,1705299040176,-151.0,0.00022536,7]
[311666172,1705299040185,-151.0,0.00022536,7]
[311666174,1705299040194,-151.0,0.00022536,7]
[311666177,1705299040205,-151.0,0.00022536,7]
[311666179,1705299040214,-211.602703,0.00022536,7]
[311666181,1705299040223,-151.0,0.00022536,2]
[311666183,1705299040233,-151.0,0.00022536,2]
[311666185,1705299040242,-151.0,0.00022536,2]
[311666187,1705299040251,-151.0,0.00022536,2]
[311666189,1705299040260,-216.407341,0.00022536,2]
[311666191,1705299040270,-151.0,0.00022536,7]
[311666192,1705299040279,-151.0,0.00022536,7]
[311666193,1705299040290,-151.0,0.00022536,7]